[Event "Turkish Youth Championships 2023"]
[Site "Samsun"]
[Date "2023.05.22"]
[Round "4.15"]
[White "Biyiksiz, Ali Batuhan"]
[Black "Adali, Umut"]
[Result "1-0"]
[ECO "C92"]
[WhiteElo "2107"]
[BlackElo "1441"]
[Annotator "NA COMBH"]
[PlyCount "135"]
[EventDate "2023.05.19"]
[EventType "swiss"]
[EventCountry "TUR"]
[SourceTitle "playchess.com"]
[Source "ChessBase"]
[SourceQuality "1"]
[TimeControl "5400+30"]

1. e4 {[%emt 0:01:00]} e5 {[%emt 0:01:00]} 2. Nf3 {[%emt 0:01:30]} Nc6 {[%emt 0:00:30]} 3. Bb5 {[%emt 0:00:30]} a6 {[%emt 0:00:30]} 4. Ba4 {[%emt 0:00:30]} Nf6 {[%emt 0:00:30]} 5. d3 {[%emt 0:00:30]} b5 {[%emt 0:00:30]} 6. Bb3 {[%emt 0:00:30]} Be7 {[%emt 0:00:30]} 7. O-O {[%emt 0:00:30]} d6 {[%emt 0:00:30]} 8. h3 {[%emt 0:00:30]} O-O {[%emt 0:00:30]} 9. c3 {[%emt 0:00:30]} Na5 {[%emt 0:00:00]} 10. Bc2 {[%emt 0:00:30]} c5 {[%emt 0:00:00]} 11. Nbd2 {[%emt 0:00:30]} Re8 {[%emt 0:00:00]} 12. Re1 {[%emt 0:00:00]} Bb7 {[%emt 0:00:00]} 13. Nf1 {[%emt 0:00:00]} Bf8 {[%emt 0:00:00]} 14. Ng3 {[%emt 0:00:30]} d5 {[%emt 0:00:00]} 15. Qe2 {[%emt 0:01:30]} Qd7 {[%emt 0:07:30]} 16. Bg5 {[%emt 0:00:30]} Qc6 {[%emt 0:01:30]} 17. Qf1 {[%emt 0:10:30]} h6 {[%emt 0:00:30]} 18. Bc1 {[%emt 0:02:30]} c4 {[%emt 0:01:30]} 19. d4 {[%emt 0:01:30]} exd4 {[%emt 0:03:30]} 20. Nxd4 {[%emt 0:00:30]} Qc7 {[%emt 0:00:30]} 21. exd5 {[%emt 0:02:30]} Bxd5 {[%emt 0:01:30]} 22. Bd2 {[%emt 0:02:30]} Bc5 {[%emt 0:00:30]} 23. Ngf5 {[%emt 0:01:30]} Bxd4 {[%emt 0:01:30]} 24. Nxd4 {[%emt 0:00:30]} Nc6 {[%emt 0:00:00]} 25. Be3 {[%emt 0:01:30]} Be4 {[%emt 0:00:00]} 26. Bxe4 {[%emt 0:03:30]} Nxe4 {[%emt 0:00:30]} 27. Qe2 {[%emt 0:01:30]} Nf6 {[%emt 0:03:30]} 28. Qf3 {[%emt 0:00:30]} Ne5 {[%emt 0:02:30]} 29. Qg3 {[%emt 0:00:30]} Ne4 {[%emt 0:02:30]} 30. Qh2 {[%emt 0:00:30]} Qd7 {[%emt 0:01:30]} 31. f3 {[%emt 0:02:30]} Nf6 {[%emt 0:06:30]} 32. Qg3 {[%emt 0:12:30]} Ng6 {[%emt 0:01:30]} 33. Bd2 {[%emt 0:10:30]} Rad8 {[%emt 0:03:30]} 34. a3 {[%emt 0:06:30]} Qd6 {[%emt 0:10:30]} 35. Rxe8+ {[%emt 0:01:30]} Nxe8 {[%emt 0:00:00]} 36. Qxd6 {[%emt 0:01:30]} Rxd6 {[%emt 0:00:00]} 37. Be3 {[%emt 0:01:30]} Nf6 {[%emt 0:00:30]} 38. a4 {[%emt 0:03:30]} Nd5 {[%emt 0:05:30]} 39. Bd2 {[%emt 0:00:30]} b4 {[%emt 0:00:30]} 40. cxb4 {[%emt 0:00:30]} Ndf4 {[%emt 0:00:00]} 41. Bc3 {[%emt 0:01:30]} Rxd4 {[%emt 0:00:00]} 42. Bxd4 {[%emt 0:00:30]} Ne2+ {[%emt 0:00:30]} 43. Kf2 {[%emt 0:00:30]} Nxd4 {[%emt 0:00:30]} 44. Rd1 {[%emt 0:00:30]} Nc2 {[%emt 0:00:30]} 45. b5 {[%emt 0:00:30]} axb5 {[%emt 0:00:30]} 46. axb5 {[%emt 0:00:30]} Nf4 {[%emt 0:00:30]} 47. b6 {[%emt 0:00:30]} Nb4 {[%emt 0:00:30]} 48. b7 {[%emt 0:00:30]} Nc6 {[%emt 0:00:30]} 49. Rd8+ {[%emt 0:00:30]} Nxd8 {[%emt 0:00:30]} 50. b8=Q {[%emt 0:00:30]} Nfe6 {[%emt 0:00:30]} 51. Qc8 {[%emt 0:01:30]} Kh7 {[%emt 0:00:30]} 52. Qxc4 {[%emt 0:00:00]} g6 {[%emt 0:00:30]} 53. b4 {[%emt 0:00:00]} Kg7 {[%emt 0:00:30]} 54. b5 {[%emt 0:00:30]} Nb7 {[%emt 0:00:00]} 55. b6 {[%emt 0:00:00]} Ned8 {[%emt 0:00:00]} 56. Qc7 {[%emt 0:00:00]} Kf6 {[%emt 0:00:00]} 57. f4 {[%emt 0:00:30]} Kg7 {[%emt 0:00:00]} 58. g4 {[%emt 0:00:30]} Kh7 {[%emt 0:00:00]} 59. f5 {[%emt 0:00:00]} g5 {[%emt 0:00:00]} 60. Ke3 {[%emt 0:00:00]} Kg7 {[%emt 0:00:00]} 61. Ke4 {[%emt 0:00:30]} Kh7 {[%emt 0:00:00]} 62. Ke5 {[%emt 0:00:30]} Kg7 {[%emt 0:00:00]} 63. Qd7 {[%emt 0:00:30]} Kh7 {[%emt 0:00:00]} 64. Kf6 {[%emt 0:00:30]} Kg8 {[%emt 0:00:30]} 65. Qe8+ {[%emt 0:00:30]} Kh7 {[%emt 0:00:30]} 66. Qf8 {[%emt 0:00:30]} Ne6 {[%emt 0:00:30]} 67. fxe6 {[%emt 0:00:00]} fxe6 {[%emt 0:00:00]} 68. Qg7# {[%emt 0:00:00]} 1-0

[Event "Turkish Youth Championships 2023"]
[Site "Samsun"]
[Date "2023.05.21"]
[Round "4.15"]
[White "Ozgun, Yigit Deniz"]
[Black "Kucuk, Aybike"]
[Result "1-0"]
[WhiteElo "1747"]
[BlackElo "1603"]
[Annotator "COMBH"]
[PlyCount "83"]
[EventDate "2023.05.19"]
[EventType "swiss"]
[EventCountry "TUR"]
[TimeControl "5400+30"]
[BlackClock "0:06:35"]

1. d4 {[%emt 0:01:00]} Nf6 {[%emt 0:01:00]} 2. Nc3 {[%emt 0:00:30]} d5 {[%emt 0:00:30]} 3. Bf4 {[%emt 0:00:30]} c6 {[%emt 0:00:30]} 4. e3 {[%emt 0:00:30]} Bf5 {[%emt 0:00:30]} 5. f3 {[%emt 0:00:30]} h5 {[%emt 0:03:30]} 6. Bd3 {[%emt 0:04:30]} e6 {[%emt 0:09:30]} 7. Bxf5 {[%emt 0:00:30]} exf5 {[%emt 0:01:30]} 8. Qd3 {[%emt 0:03:30]} g6 {[%emt 0:00:30]} 9. O-O-O {[%emt 0:01:30]} Bg7 {[%emt 0:02:30]} 10. e4 {[%emt 0:06:30]} fxe4 {[%emt 0:09:30]} 11. fxe4 {[%emt 0:00:30]} O-O {[%emt 0:02:30]} 12. e5 {[%emt 0:05:30]} Nh7 {[%emt 0:07:30]} 13. Nf3 {[%emt 0:05:30]} Na6 {[%emt 0:02:30]} 14. Rdg1 {[%emt 0:00:30]} Nc7 {[%emt 0:01:30]} 15. h4 {[%emt 0:00:30]} Ne6 {[%emt 0:01:30]} 16. Bd2 {[%emt 0:01:30]} c5 {[%emt 0:02:30]} 17. dxc5 {[%emt 0:01:30]} Nxc5 {[%emt 0:00:30]} 18. Qxd5 {[%emt 0:00:30]} Qxd5 {[%emt 0:00:30]} 19. Nxd5 {[%emt 0:00:30]} Rfd8 {[%emt 0:01:30]} 20. Nc3 {[%emt 0:00:00]} f6 {[%emt 0:02:30]} 21. g4 {[%emt 0:03:00]} Kf7 {[%emt 0:05:30]} 22. gxh5 {[%emt 0:00:30]} gxh5 {[%emt 0:00:30]} 23. exf6 {[%emt 0:02:30]} Nxf6 {[%emt 0:02:30]} 24. Ng5+ {[%emt 0:03:30]} Ke7 {[%emt 0:03:30]} 25. Re1+ {[%emt 0:03:30]} Kd7 {[%emt 0:03:30]} 26. b4 {[%emt 0:00:30]} Na6 {[%emt 0:00:30]} 27. Ne6 {[%emt 0:00:00]} Rg8 {[%emt 0:00:30]} 28. Nxg7 {[%emt 0:00:00]} Rxg7 {[%emt 0:00:30]} 29. Bg5 {[%emt 0:00:30]} Ng4 {[%emt 0:04:30]} 30. Rd1+ {[%emt 0:00:30]} Ke6 {[%emt 0:05:30]} 31. Rhe1+ {[%emt 0:03:30]} Kf5 {[%emt 0:00:30]} 32. b5 {[%emt 0:04:30]} Nc7 {[%emt 0:00:30]} 33. Rd6 {[%emt 0:01:30]} Rxg5 {[%emt 0:06:30]} 34. hxg5 {[%emt 0:00:30]} Kxg5 {[%emt 0:06:22]} 35. Rd7 {[%emt 0:05:30]} Ne8 {[%emt 0:00:42]} 36. Ne4+ {[%emt 0:00:30]} Kg6 {[%emt 0:00:30]} 37. Rxb7 {[%emt 0:00:30]} Ng7 {[%emt 0:00:30]} 38. c4 {[%emt 0:00:30]} Re8 {[%emt 0:00:30]} 39. c5 {[%emt 0:00:30]} Nf5 {[%emt 0:04:30]} 40. c6 {[%emt 0:02:30]} Nd6 {[%emt 0:04:16]} 41. Nxd6 {[%emt 0:00:30]} Rxe1+ {[%emt 0:00:10]} 42. Kd2 {[%emt 0:00:00]} 1-0

[Event "Turkish Youth Championships 2023"]
[Site "Samsun"]
[Date "2023.05.22"]
[Round "4.16"]
[White "Aydogdu, Cagatay"]
[Black "Tutmaz, Bugra Hamza"]
[Result "0-1"]
[ECO "B40"]
[WhiteElo "1856"]
[BlackElo "1384"]
[Annotator "NA COMBH"]
[PlyCount "178"]
[EventDate "2023.05.19"]
[EventType "swiss"]
[EventCountry "TUR"]
[SourceTitle "playchess.com"]
[Source "ChessBase"]
[SourceQuality "1"]
[TimeControl "5400+30"]

1. e4 {[%emt 0:01:00]} c5 {[%emt 0:01:00]} 2. Nf3 {[%emt 0:01:30]} e6 {[%emt 0:00:30]} 3. c4 {[%emt 0:00:30]} d5 {[%emt 0:00:30]} 4. Nc3 {[%emt 0:00:30]} dxe4 {[%emt 0:00:30]} 5. Nxe4 {[%emt 0:00:30]} Nc6 {[%emt 0:00:30]} 6. d3 {[%emt 0:00:30]} Nf6 {[%emt 0:00:30]} 7. Bg5 {[%emt 0:00:30]} Be7 {[%emt 0:00:30]} 8. Bxf6 {[%emt 0:03:30]} Bxf6 {[%emt 0:00:30]} 9. Qd2 {[%emt 0:03:30]} b6 {[%emt 0:02:30]} 10. Be2 {[%emt 0:00:30]} Bb7 {[%emt 0:01:30]} 11. O-O {[%emt 0:00:00]} O-O {[%emt 0:00:30]} 12. Rab1 {[%emt 0:01:00]} Nd4 {[%emt 0:01:30]} 13. Nxd4 {[%emt 0:01:30]} Bxd4 {[%emt 0:05:30]} 14. Bf3 {[%emt 0:00:30]} Qd7 {[%emt 0:07:30]} 15. b4 {[%emt 0:04:30]} cxb4 {[%emt 0:02:30]} 16. Qxb4 {[%emt 0:00:30]} Bxe4 {[%emt 0:00:30]} 17. Bxe4 {[%emt 0:00:30]} Rac8 {[%emt 0:00:30]} 18. Qb5 {[%emt 0:03:30]} Rfd8 {[%emt 0:00:30]} 19. Qxd7 {[%emt 0:09:30]} Rxd7 {[%emt 0:01:30]} 20. g4 {[%emt 0:00:30]} g6 {[%emt 0:14:30]} 21. g5 {[%emt 0:00:30]} h6 {[%emt 0:05:30]} 22. h4 {[%emt 0:00:30]} hxg5 {[%emt 0:00:30]} 23. hxg5 {[%emt 0:00:00]} Rc5 {[%emt 0:00:30]} 24. Rb5 {[%emt 0:01:00]} Kg7 {[%emt 0:04:30]} 25. a4 {[%emt 0:00:30]} a5 {[%emt 0:01:30]} 26. Kh2 {[%emt 0:02:30]} Rxb5 {[%emt 0:00:30]} 27. cxb5 {[%emt 0:00:30]} Bc5 {[%emt 0:01:30]} 28. f4 {[%emt 0:02:30]} Rd4 {[%emt 0:00:30]} 29. Ra1 {[%emt 0:00:30]} Bd6 {[%emt 0:02:30]} 30. Kg3 {[%emt 0:01:30]} e5 {[%emt 0:00:00]} 31. Rc1 {[%emt 0:12:30]} exf4+ {[%emt 0:03:00]} 32. Kf3 {[%emt 0:00:00]} Rxa4 {[%emt 0:02:30]} 33. Rc6 {[%emt 0:00:00]} Bc5 {[%emt 0:00:30]} 34. Kxf4 {[%emt 0:02:30]} Rd4 {[%emt 0:03:30]} 35. Ke5 {[%emt 0:02:30]} Rd7 {[%emt 0:04:30]} 36. Rc8 {[%emt 0:16:30]} Bd4+ {[%emt 0:03:30]} 37. Kf4 {[%emt 0:00:30]} Bc5 {[%emt 0:01:30]} 38. Ke5 {[%emt 0:09:30]} a4 {[%emt 0:01:30]} 39. Bd5 {[%emt 0:00:30]} Re7+ {[%emt 0:00:30]} 40. Kf4 {[%emt 0:00:30]} Be3+ {[%emt 0:01:30]} 41. Kg4 {[%emt 0:06:02]} Re5 {[%emt 0:07:30]} 42. Bc4 {[%emt 0:02:37]} Rxg5+ {[%emt 0:00:30]} 43. Kf3 {[%emt 0:00:04]} Rc5 {[%emt 0:03:25]} 44. Ra8 {[%emt 0:02:37]} Bd4 {[%emt 0:02:23]} 45. Ke4 {[%emt 0:02:33]} Be5 {[%emt 0:00:08]} 46. Ra7 {[%emt 0:00:14]} Bc7 {[%emt 0:00:24]} 47. Rxa4 {[%emt 0:00:40]} f5+ {[%emt 0:00:09]} 48. Kf3 {[%emt 0:00:00]} Re5 {[%emt 0:00:29]} 49. d4 {[%emt 0:00:15]} Re7 {[%emt 0:00:10]} 50. Bd5 {[%emt 0:00:42]} g5 {[%emt 0:00:35]} 51. Rc4 {[%emt 0:01:02]} g4+ {[%emt 0:00:16]} 52. Kf2 {[%emt 0:00:23]} Bf4 {[%emt 0:00:46]} 53. Rc3 {[%emt 0:02:59]} Bd2 {[%emt 0:01:34]} 54. Rd3 {[%emt 0:00:45]} Bb4 {[%emt 0:01:11]} 55. Rb3 {[%emt 0:01:51]} Rd7 {[%emt 0:02:30]} 56. Bc4 {[%emt 0:01:18]} Be7 {[%emt 0:00:37]} 57. Rd3 {[%emt 0:03:41]} Kf6 {[%emt 0:00:14]} 58. Kg2 {[%emt 0:00:23]} Kg5 {[%emt 0:01:36]} 59. Be6 {[%emt 0:00:43]} Rd6 {[%emt 0:02:26]} 60. d5 {[%emt 0:00:12]} Bf6 {[%emt 0:00:20]} 61. Rd2 {[%emt 0:00:36]} f4 {[%emt 0:00:36]} 62. Rc2 {[%emt 0:00:47]} Be5 {[%emt 0:01:00]} 63. Rc8 {[%emt 0:00:14]} f3+ {[%emt 0:01:30]} 64. Kf2 {[%emt 0:00:02]} Bd4+ {[%emt 0:00:10]} 65. Kg3 {[%emt 0:00:12]} f2 {[%emt 0:01:30]} 66. Rg8+ {[%emt 0:00:47]} Kh6 {[%emt 0:00:50]} 67. Kg2 {[%emt 0:00:30]} g3 {[%emt 0:01:40]} 68. Rxg3 {[%emt 0:00:24]} Rd8 {[%emt 0:00:34]} 69. Rd3 {[%emt 0:00:31]} Bc5 {[%emt 0:00:35]} 70. Rc3 {[%emt 0:00:26]} Kg5 {[%emt 0:01:12]} 71. Rc4 {[%emt 0:01:56]} Kf6 {[%emt 0:01:13]} 72. Rh4 {[%emt 0:01:02]} Ke5 {[%emt 0:00:45]} 73. Rh5+ {[%emt 0:00:24]} Ke4 {[%emt 0:00:30]} 74. Rh4+ {[%emt 0:00:15]} Ke3 {[%emt 0:00:19]} 75. Rh3+ {[%emt 0:00:22]} Ke2 {[%emt 0:00:27]} 76. Rh1 {[%emt 0:01:17]} Rf8 {[%emt 0:00:18]} 77. Bg4+ {[%emt 0:00:06]} Ke3 {[%emt 0:00:43]} 78. Rd1 {[%emt 0:00:36]} Rg8 {[%emt 0:00:24]} 79. Kh3 {[%emt 0:00:19]} Kf4 {[%emt 0:00:39]} 80. Be2 {[%emt 0:00:32]} Rg3+ {[%emt 0:01:00]} 81. Kh2 {[%emt 0:00:17]} Re3 {[%emt 0:00:48]} 82. Bc4 {[%emt 0:00:51]} Re1 {[%emt 0:00:07]} 83. Rd2 {[%emt 0:00:23]} f1=Q {[%emt 0:02:30]} 84. Bxf1 {[%emt 0:00:30]} Rxf1 {[%emt 0:00:00]} 85. Kg2 {[%emt 0:00:04]} Rg1+ {[%emt 0:00:30]} 86. Kh2 {[%emt 0:00:30]} Rg6 {[%emt 0:00:00]} 87. Rd1 {[%emt 0:00:33]} Kf3 {[%emt 0:00:03]} 88. Rd3+ {[%emt 0:00:40]} Be3 {[%emt 0:00:30]} 89. d6 {[%emt 0:00:00]} Rh6# {[%emt 0:00:00]} 0-1

[Event "Turkish Youth Championships 2023"]
[Site "Samsun"]
[Date "2023.05.21"]
[Round "4.16"]
[White "Engin, Eyup Tarik"]
[Black "Demirbas, Emre"]
[Result "0-1"]
[WhiteElo "1513"]
[BlackElo "2013"]
[Annotator "TA"]
[PlyCount "90"]
[EventDate "2023.05.19"]
[EventType "swiss"]
[EventCountry "TUR"]
[TimeControl "5400+30"]

{[%evp 22,90,39,8,18,22,25,34,31,0,0,-29,0,-19,-21,-51,-57,-57,-55,-62,-53,-107,-107,-116,-116,-156,-102,-372,-373,-404,-177,-182,-183,-181,-186,-235,-199,-244,-250,-322,-315,-309,-309,-307,0,-303,-303,-321,-322,-737,-700,-898,-461,-461,-461,-429,-338,-432,-310,-314,-274,-560,-560,-560,-559,-552,-535,-1152,-1184,-1181,-1144]} 1. e4 {[%emt 0:01:00]} c5 {[%emt 0:04:00]} 2. Nf3 {[%emt 0:00:30]} e6 {[%emt 0:00:30]} 3. d4 {[%emt 0:00:30]} cxd4 {[%emt 0:00:30]} 4. Nxd4 {[%emt 0:00:30]} Nf6 {[%emt 0:00:30]} 5. Nc3 {[%emt 0:00:30]} Nc6 {[%emt 0:00:00]} 6. Ndb5 {[%emt 0:00:00]} Bb4 {[%emt 0:00:00]} 7. a3 {[%emt 0:12:00]} Bxc3+ {[%emt 0:02:30]} 8. Nxc3 {[%emt 0:00:30]} d5 {[%emt 0:00:30]} 9. exd5 {[%emt 0:04:30]} exd5 {[%emt 0:00:00]} 10. Bd3 {[%emt 0:05:30]} O-O {[%emt 0:00:00]} 11. O-O {[%emt 0:00:30]} d4 {[%emt 0:00:30] 11...Bg4 is more advanced technology.} 12. Ne4 {[%emt 0:05:30]} Ng4 {[%emt 0:04:30] B45: Sicilian Four Knights.} (12... Bf5 $5 13. Bg5 Bxe4 14. Bxe4 Re8 15. Bxf6 Qxf6 $11) 13. Bf4 {[%emt 0:09:30]} Nge5 {[%emt 0:05:30]} 14. Re1 {[%emt 0:07:30]} Bf5 {[%emt 0:07:30] [#] White is slightly better.} 15. Qh5 $146 {[%emt 0:15:30]} ({Predecessor:} 15. Nc5 Nxd3 16. Nxd3 Qf6 17. Bg3 Bg6 18. Qd2 Rfe8 19. Rxe8+ {½-½ Berggren,J (2102)-Westerberg,J (1896) SWE-chB Vadso 2008 (5)}) 15... Bg6 {[%emt 0:02:30]} 16. Qh3 {[%emt 0:00:30]} Re8 {[%emt 0:04:30]} 17. Qg3 {[%emt 0:11:30]} (17. Nc5 $5 {[%cal Rc5b7]}) 17... Qd5 {[%emt 0:01:30]} 18. Nd2 {[%emt 0:04:32]} Nxd3 $1 {[%emt 0:03:30]} 19. cxd3 {[%emt 0:00:07]} Re6 {[%emt 0:04:30]} 20. Rxe6 {[%emt 0:02:54]} Qxe6 {[%emt 0:00:30]} 21. Nf3 {[%emt 0:02:24]} (21. Qf3 $15) 21... Re8 $17 {[%emt 0:01:30]} 22. h4 {[%emt 0:00:33] [#]} Qb3 $1 {[%emt 0:01:30]} 23. Rc1 {[%emt 0:01:30]} Qxd3 {[%emt 0:01:30] Black is more active.} ({Black should try} 23... Qxb2 24. Qg4 Qxa3) 24. Rxc6 $2 {[%emt 0:02:21][%mdl 8192]} bxc6 $19 {[%emt 0:00:30]} 25. Be5 {[%emt 0:00:59]} Qf5 {[%emt 0:06:30]} (25... c5 $142 26. h5 f6 27. hxg6 fxe5 28. gxh7+ Kh8) 26. Bxd4 {[%emt 0:00:30]} c5 {[%emt 0:00:30]} 27. Bc3 {[%emt 0:00:30]} h6 {[%emt 0:00:30]} 28. Kh2 {[%emt 0:04:29]} (28. Ne5 $142) 28... Kh7 {[%emt 0:07:30]} 29. Ne5 {[%emt 0:00:30]} f6 {[%emt 0:00:30]} 30. Nf3 {[%emt 0:00:30]} Re4 {[%emt 0:04:30] ...Rg4 would be deadly.} 31. Qh3 {[%emt 0:05:09]} Qd5 {[%emt 0:03:30] [#] Threatens to win with ...Bf5.} 32. Qg3 {[%emt 0:00:24]} Qf5 {[%emt 0:01:30]} 33. Qh3 {[%emt 0:00:18]} Rg4 {[%emt 0:02:30]} 34. Kg1 {[%emt 0:01:38]} Qb1+ {[%emt 0:01:30]} 35. Ne1 $2 {[%emt 0:02:23]} (35. Kh2 Qe4 36. Kg1) 35... Re4 {[%emt 0:00:30]} 36. Kf1 {[%emt 0:00:28]} c4 {[%emt 0:00:00][%cal Oe4e1] Strongly threatening ...Rxe1+!} 37. f3 {[%emt 0:00:00]} Re7 {[%emt 0:01:00] Hoping for ...Bd3+.} 38. Qg3 {[%emt 0:00:24]} Qc1 {[%emt 0:00:30]} ({Not} 38... Qd1 $2 39. a4 $19) 39. Qf2 {[%emt 0:00:36]} Qf4 {[%emt 0:02:30] White must now prevent ...Bd3+.} 40. Kg1 {[%emt 0:00:16]} h5 {[%emt 0:00:30]} 41. Kh1 $2 {[%emt 0:00:32]} (41. Bd2 {was necessary.} Qe5 42. Bb4) 41... Bd3 {[%emt 0:03:30] And now ...Re2 would win. Black is clearly winning.} 42. Bd2 {[%emt 0:00:21]} Re2 {[%emt 0:01:30]} 43. Bxf4 {[%emt 0:01:00]} Rxf2 {[%emt 0:00:30]} 44. Nxd3 {[%emt 0:01:02]} cxd3 {[%emt 0:00:00][%cal Bc4d3,Bd3d2][%mdl 32]} 45. Kg1 {[%emt 0:00:12]} d2 {[%emt 0:00:00] Weighted Error Value: White=0.66/Black=0.50} 0-1

[Event "Turkish Youth Championships 2023"]
[Site "Samsun"]
[Date "2023.05.21"]
[Round "4.17"]
[White "Cirkin, Osman Turan"]
[Black "Yuksel, Fatih Canberk"]
[Result "1/2-1/2"]
[WhiteElo "1200"]
[BlackElo "1599"]
[Annotator "COMBH"]
[PlyCount "152"]
[EventDate "2023.05.19"]
[EventType "swiss"]
[EventCountry "TUR"]
[TimeControl "5400+30"]
[WhiteClock "0:18:04"]

1. d4 {[%emt 0:01:00]} Nf6 {[%emt 0:01:00]} 2. Nf3 {[%emt 0:00:30]} e6 {[%emt 0:00:30]} 3. Bf4 {[%emt 0:00:30]} d5 {[%emt 0:00:30]} 4. e3 {[%emt 0:00:00]} c5 {[%emt 0:00:30]} 5. c3 {[%emt 0:00:00]} Nc6 {[%emt 0:00:30]} 6. Nbd2 {[%emt 0:00:30]} Bd6 {[%emt 0:01:30]} 7. Bg3 {[%emt 0:02:30]} O-O {[%emt 0:02:30]} 8. Bd3 {[%emt 0:02:30]} Re8 {[%emt 0:02:30]} 9. Ne5 {[%emt 0:01:30]} Qc7 {[%emt 0:04:30]} 10. f4 {[%emt 0:03:30]} Ne7 {[%emt 0:01:30]} 11. O-O {[%emt 0:01:30]} Ng6 {[%emt 0:06:30]} 12. Qf3 {[%emt 0:05:30]} a6 {[%emt 0:10:30]} 13. h4 {[%emt 0:04:30]} Nd7 {[%emt 0:06:30]} 14. h5 {[%emt 0:02:30]} Ngf8 {[%emt 0:00:00]} 15. Bh4 {[%emt 0:05:30]} f5 {[%emt 0:01:00]} 16. g4 {[%emt 0:01:30]} Nf6 {[%emt 0:10:30]} 17. gxf5 {[%emt 0:17:30]} exf5 {[%emt 0:00:30]} 18. Kh1 {[%emt 0:00:30]} Ne4 {[%emt 0:03:30]} 19. Bxe4 {[%emt 0:03:30]} fxe4 {[%emt 0:00:30]} 20. Qg3 {[%emt 0:01:30]} cxd4 {[%emt 0:06:30]} 21. cxd4 {[%emt 0:01:30]} Bxe5 {[%emt 0:00:30]} 22. fxe5 {[%emt 0:00:00]} Qd7 {[%emt 0:00:30]} 23. Rac1 {[%emt 0:04:00]} Qh3+ {[%emt 0:00:30]} 24. Qxh3 {[%emt 0:00:30]} Bxh3 {[%emt 0:00:30]} 25. Rg1 {[%emt 0:00:30]} Rac8 {[%emt 0:04:30]} 26. Kh2 {[%emt 0:01:30]} Bd7 {[%emt 0:03:30]} 27. Nb3 {[%emt 0:01:30]} b6 {[%emt 0:01:30]} 28. Bf6 {[%emt 0:02:30]} g6 {[%emt 0:05:30]} 29. hxg6 {[%emt 0:00:30]} Nxg6 {[%emt 0:00:30]} 30. Rg2 {[%emt 0:00:30]} Rxc1 {[%emt 0:00:30]} 31. Nxc1 {[%emt 0:00:30]} Rc8 {[%emt 0:00:30]} 32. Ne2 {[%emt 0:00:30]} Kf7 {[%emt 0:00:30]} 33. Nc3 {[%emt 0:04:30]} Ke6 {[%emt 0:05:30]} 34. Kg3 {[%emt 0:00:30]} b5 {[%emt 0:00:30]} 35. a3 {[%emt 0:00:30]} a5 {[%emt 0:01:49]} 36. Ne2 {[%emt 0:03:30]} b4 {[%emt 0:13:52]} 37. axb4 {[%emt 0:00:30]} axb4 {[%emt 0:00:47]} 38. Nf4+ {[%emt 0:00:30]} Nxf4 {[%emt 0:00:11]} 39. Kxf4 {[%emt 0:00:30]} Rc1 {[%emt 0:00:00]} 40. Bg7 {[%emt 0:02:30]} Be8 {[%emt 0:02:51]} 41. Kg3 {[%emt 0:03:30]} Bh5 {[%emt 0:01:19]} 42. Bf8 {[%emt 0:00:30]} b3 {[%emt 0:00:54]} 43. Rh2 {[%emt 0:01:30]} Bg6 {[%emt 0:00:37]} 44. Bb4 {[%emt 0:00:30]} h5 {[%emt 0:02:06]} 45. Rf2 {[%emt 0:00:30]} Bf5 {[%emt 0:00:00]} 46. Rg2 {[%emt 0:02:30]} Bg4 {[%emt 0:00:55]} 47. Kh4 {[%emt 0:01:31]} Kf5 {[%emt 0:01:01]} 48. Kg3 {[%emt 0:01:21]} Rh1 {[%emt 0:00:32]} 49. Rh2 {[%emt 0:01:28]} Rg1+ {[%emt 0:01:01]} 50. Rg2 {[%emt 0:00:30]} h4+ {[%emt 0:00:09]} 51. Kh2 {[%emt 0:00:58]} Rc1 {[%emt 0:00:41]} 52. e6 {[%emt 0:01:05]} Rc2 {[%emt 0:00:40]} 53. e7 {[%emt 0:01:15]} Bh5 {[%emt 0:00:03]} 54. Kh3 {[%emt 0:01:07]} Rxg2 {[%emt 0:00:48]} 55. Kxg2 {[%emt 0:00:02]} Kg4 {[%emt 0:00:50]} 56. Bd6 {[%emt 0:00:07]} Be8 {[%emt 0:00:18]} 57. Bh2 {[%emt 0:00:52]} Bd7 {[%emt 0:00:29]} 58. Bd6 {[%emt 0:00:35]} Kg5 {[%emt 0:00:31]} 59. Kh2 {[%emt 0:01:35]} h3 {[%emt 0:00:33]} 60. e8=Q {[%emt 0:00:50]} Bxe8 {[%emt 0:00:30]} 61. Kxh3 {[%emt 0:00:00]} Kf5 {[%emt 0:00:15]} 62. Kg3 {[%emt 0:00:11]} Ke6 {[%emt 0:00:19]} 63. Bb4 {[%emt 0:00:26]} Kd7 {[%emt 0:00:15]} 64. Kf4 {[%emt 0:00:34]} Kc6 {[%emt 0:00:30]} 65. Ke5 {[%emt 0:00:00]} Bf7 {[%emt 0:00:59]} 66. Kf4 {[%emt 0:01:14]} Kb5 {[%emt 0:00:30]} 67. Bc3 {[%emt 0:00:30]} Kc4 {[%emt 0:00:00]} 68. Kg3 {[%emt 0:00:07]} Kd3 {[%emt 0:00:00]} 69. Kf2 {[%emt 0:00:00]} Bh5 {[%emt 0:00:07]} 70. Bb4 {[%emt 0:00:00]} Bd1 {[%emt 0:01:42]} 71. Bc3 {[%emt 0:00:06]} Bf3 {[%emt 0:00:59]} 72. Bb4 {[%emt 0:00:11]} Kc2 {[%emt 0:00:06]} 73. Bc3 {[%emt 0:00:02]} Bh5 {[%emt 0:00:10]} 74. Ke1 {[%emt 0:00:18]} Kc1 {[%emt 0:00:22]} 75. Kf2 {[%emt 0:00:36]} Kd1 {[%emt 0:00:03]} 76. Bb4 {[%emt 0:00:00]} Kc2 {[%emt 0:00:57]} 1/2-1/2